bitfinex/quotes_ETHUSD_20240618
["timestamp","ask_amount","ask_price","bid_price","bid_amount"]
[1718720191669,2.92955,3413.5,3412.6,1.765]
[1718720192982,2.92997,3413.0,3411.9,1.765]
[1718720193157,0.585969,3413.0,3411.9,1.765]
[1718720193483,0.55,3413.4,3412.0,0.05861032]
[1718720193682,0.55,3413.4,3411.9,1.765]
[1718720193683,0.55,3413.6,3411.9,1.765]
[1718720193901,0.55,3413.6,3411.9,2.05687]
[1718720193902,2.93004,3413.0,3411.9,2.05687]
[1718720194107,2.92942,3413.7,3411.9,2.05687]
[1718720194108,0.6118221,3414.4,3412.7,1.1537]
[1718720194269,2.2934,3414.6,3412.7,2.9187]
[1718720194908,2.92928,3413.9,3412.7,2.9187]
[1718720195084,2.92928,3413.9,3412.7,1.1537]
[1718720195271,2.92958,3413.5,3412.7,1.1537]
[1718720195608,2.92946,3413.6,3412.7,1.1537]
[1718720196481,3.2110895,3414.6,3412.7,1.1537]
[1718720196482,2.92912,3414.0,3412.7,1.1537]
[1718720196685,2.92939,3413.7,3412.7,1.1537]
[1718720197203,2.92948,3413.6,3412.7,1.1537]
[1718720197391,2.92973,3413.3,3412.5,3.0]
[1718720197625,2.9298,3413.2,3412.1,4.1537]
[1718720197908,2.9299,3413.1,3412.1,1.1537]
[1718720198086,3.4798,3413.2,3412.1,1.1537]
[1718720198292,4.17574,3413.2,3412.1,2.9187]
[1718720198491,4.17574,3413.2,3412.1,1.1537]
[1718720198800,2.92998,3413.0,3412.1,1.1537]
[1718720199168,2.93006,3412.9,3412.1,1.1537]
[1718720199570,0.710589,3412.9,3411.8,1.765]
[1718720199825,0.710589,3412.9,3411.5,1.1537]
[1718720199826,2.93064,3412.3,3411.5,1.1537]
[1718720199980,2.93064,3412.3,3410.9,7.43]
[1718720199981,3.223704,3412.3,3410.9,1.1537]
[1718720200332,3.223704,3412.3,3411.1,1.17414]
[1718720200333,2.93091,3412.0,3411.1,1.17414]
[1718720200612,0.293064,3412.3,3410.9,1.1537]
[1718720200613,2.93111,3411.7,3410.9,1.1537]
[1718720200826,2.93034,3412.6,3411.0,0.05863268]
[1718720200984,2.93041,3412.5,3410.9,1.1537]
[1718720201596,2.93032,3412.6,3410.9,1.1537]
[1718720201820,0.55,3412.5,3410.9,1.1537]
[1718720202027,3.48047,3412.5,3411.0,0.46907]
[1718720202191,0.55,3412.5,3411.0,0.46907]
[1718720202510,3.48041,3412.5,3411.0,0.46907]
[1718720202712,2.93049,3412.4,3411.0,0.46907]
[1718720202940,3.4804,3412.5,3411.1,0.815977]
[1718720203730,2.9305,3412.4,3411.1,0.815977]
[1718720204042,3.48057,3412.3,3411.1,0.815977]
[1718720204196,2.93073,3412.2,3410.9,1.1537]
[1718720204391,2.93099,3411.9,3410.9,1.1537]
[1718720204929,2.93084,3412.0,3410.9,1.1537]
[1718720205102,0.55,3411.9,3410.9,1.1537]
[1718720205289,2.93051,3412.4,3411.0,0.05863179]
[1718720205628,2.93095,3411.9,3410.5,0.33145127]
[1718720205787,0.293095,3411.8,3410.5,0.33314513]
[1718720205993,0.293095,3411.8,3410.1,1.20471588]
[1718720205994,3.4806,3412.3,3410.6,0.05863509]
[1718720206188,3.4806,3412.3,3410.1,1.53351055]
[1718720206189,2.93092,3411.9,3410.1,1.53351055]
[1718720206504,2.931,3411.8,3410.2,0.15335105]
[1718720206702,2.93092,3411.9,3410.2,0.15335105]
[1718720206899,0.4297503,3412.2,3410.3,0.05863197]
[1718720207098,2.93053,3412.4,3410.3,6.82030936]
[1718720207306,2.81571886,3412.7,3410.4,4.21232589]
[1718720207307,2.3082,3412.7,3410.4,4.21232589]
[1718720207522,3.48031,3412.6,3410.4,4.1537]
[1718720207808,2.93111,3411.7,3410.5,0.99601004]
[1718720208213,2.93099,3411.9,3410.6,0.05863231]
[1718720208589,2.931,3411.8,3410.6,0.05863231]
[1718720208817,2.931,3411.8,3410.7,0.52083423]
[1718720209395,2.93109,3411.7,3410.7,0.52083423]
[1718720209918,5.86225,3411.7,3410.7,0.52083423]
[1718720210086,2.93109,3411.7,3410.7,0.52083423]
[1718720210294,2.93092,3411.9,3410.7,0.52083423]
[1718720210496,2.93109,3411.7,3410.7,0.52083423]
[1718720211201,2.93126,3411.5,3410.4,4.1537]
[1718720211726,2.93145,3411.3,3410.4,4.1537]
[1718720211930,2.93161,3411.1,3410.4,4.1537]
[1718720212234,6.68015,3412.8,3410.4,1.1537]
[1718720212235,2.93152,3411.2,3410.4,1.1537]
[1718720212390,5.86285,3411.4,3410.5,0.39637]
[1718720212592,2.93152,3411.2,3410.4,1.1537]
[1718720212890,2.93162,3411.1,3410.4,1.1537]
[1718720213488,2.93153,3411.2,3410.4,1.1537]
[1718720214005,2.93081,3412.1,3410.4,1.1537]
[1718720214006,2.93049,3412.4,3410.9,1.765]
[1718720214212,2.93049,3412.4,3410.8,2.81]
[1718720214213,3.16116,3412.6,3410.8,2.81]
[1718720214430,2.93092,3411.9,3410.8,2.81]
[1718720214634,2.93103,3411.8,3410.8,2.81]
[1718720214810,2.93109,3411.7,3410.8,2.81]
[1718720215933,2.93109,3411.7,3410.8,3.2675]
[1718720216496,2.93092,3411.9,3410.8,3.2675]
[1718720216696,2.93083,3412.0,3410.8,3.2675]
[1718720216892,2.93102,3411.8,3410.8,3.2675]
[1718720217699,0.293083,3411.9,3410.8,2.81]
[1718720218047,2.93085,3412.0,3410.6,1.765]
[1718720218540,3.5424321,3412.3,3410.6,1.765]
[1718720218541,2.93091,3411.9,3410.6,1.765]
[1718720218904,2.93109,3411.7,3410.6,1.765]
[1718720219530,2.93102,3411.8,3410.6,1.765]
[1718720219849,2.93102,3411.8,3410.6,2.63787]
[1718720220222,2.93092,3411.9,3410.7,0.05863204]
[1718720220223,0.6118221,3411.9,3410.7,0.05863204]
[1718720220434,0.6118221,3411.9,3411.2,2.9187]
[1718720220642,2.93056,3412.4,3411.2,2.9187]
[1718720220846,2.9305,3412.4,3411.2,3.49157]
[1718720221348,2.93059,3412.3,3411.2,3.49157]
[1718720221537,2.9304,3412.5,3411.2,1.1537]
[1718720221719,2.13134037,3412.4,3410.7,3.0]
[1718720221918,4.26292257,3412.4,3410.8,0.05863202]
[1718720222123,2.3977,3413.2,3410.8,0.05863202]
[1718720222124,2.1315822,3412.3,3411.3,2.81]
[1718720222321,0.50743854,3413.1,3411.9,2.81]
[1718720222520,2.3204,3413.8,3412.1,1.765]
[1718720222820,5.07921004,3413.7,3412.4,4.575]
[1718720223019,5.07921004,3413.7,3412.4,1.765]
[1718720223020,4.26132804,3413.6,3412.4,1.765]
[1718720223220,2.13071599,3413.5,3412.5,0.05860176]
[1718720223555,4.26132804,3413.5,3412.5,0.05860176]
[1718720223710,4.26132804,3413.4,3412.5,0.43266795]
[1718720223907,4.26117856,3413.3,3412.5,0.43266795]
[1718720224111,2.9292,3413.9,3412.3,1.1537]
[1718720224310,2.93065,3412.3,3411.4,2.81]
[1718720224508,2.93013,3412.9,3411.5,0.05862237]
[1718720224746,2.13091708,3412.8,3411.6,0.28686224]
[1718720224965,2.13091478,3412.7,3411.7,0.05861428]
[1718720225110,2.92928,3413.8,3412.0,2.81]
[1718720225310,2.92994,3413.1,3412.0,2.81]
[1718720225550,4.26142608,3413.0,3412.0,2.81]
[1718720225732,0.82952188,3413.8,3412.1,2.39648069]
[1718720226023,0.292901,3414.1,3412.1,2.39648069]
[1718720226024,4.26118639,3413.7,3412.1,2.33787]
[1718720226249,2.9292,3413.9,3412.3,1.765]
[1718720226250,7.90969503,3413.6,3412.3,1.765]
[1718720226553,4.26118639,3413.5,3412.4,0.05860241]
[1718720226768,2.13059725,3413.4,3412.4,2.01037594]
[1718720226914,2.13059725,3413.3,3412.4,2.01037594]
[1718720227119,0.6222191,3413.8,3412.5,4.89765622]
[1718720227340,0.292901,3414.1,3412.5,4.63360293]
[1718720227341,2.1303204,3413.7,3412.5,4.63360293]
[1718720227541,0.292901,3414.1,3412.5,4.63360293]
[1718720227542,2.1303204,3413.6,3412.5,4.63360293]
[1718720227746,2.92878,3414.4,3412.9,1.765]
[1718720228047,2.13009536,3414.3,3413.1,1.765]
[1718720228254,2.13009536,3414.2,3413.2,0.04070148]
[1718720228442,2.13009536,3414.1,3413.4,1.765]
[1718720228638,2.92854,3414.7,3413.4,1.765]
[1718720228825,4.84531361,3414.6,3413.4,1.765]
[1718720229150,2.12983201,3414.5,3413.4,1.765]
[1718720230126,2.12975274,3414.4,3413.4,1.765]
[1718720230451,2.9287,3414.5,3413.4,1.765]
[1718720230650,2.71553546,3414.4,3413.4,1.765]
[1718720230853,3.27183691,3415.0,3413.5,0.05858554]
[1718720231148,3.27180691,3415.0,3413.7,1.765]
[1718720231352,2.3037,3415.7,3413.7,1.765]
[1718720231564,2.92692,3416.6,3413.7,1.765]
[1718720231565,2.12944587,3415.5,3414.3,1.765]
[1718720231731,2.93274,3415.6,3414.6,2.81]
[1718720231927,0.005,3415.6,3414.7,0.281]
[1718720232240,0.005,3415.6,3414.8,1.82356662]
[1718720232629,0.005,3415.6,3414.8,1.765]
[1718720232830,0.005,3415.6,3414.8,2.5506]
[1718720233436,0.005,3415.6,3414.9,0.05856061]
[1718720233626,0.005,3415.6,3414.8,2.5506]
[1718720233831,0.005,3415.6,3414.8,0.7856]
[1718720234033,2.93282,3415.6,3414.6,2.81]
[1718720234260,2.92786,3415.5,3414.6,2.81]
[1718720234462,2.92802,3415.3,3414.2,1.1537]
[1718720234671,2.93274,3415.6,3414.2,1.1537]
[1718720234966,2.92783,3415.5,3414.2,1.1537]
[1718720236126,2.92825,3415.0,3413.7,0.32465534]
[1718720236471,2.92842,3414.8,3413.7,0.32465534]
[1718720236630,2.9286,3414.6,3413.7,0.32465534]
[1718720236834,0.60929369,3414.8,3413.5,3.9637]
[1718720237161,2.92862,3414.6,3413.6,0.61902702]
[1718720237579,2.92869,3414.5,3413.6,0.61902702]
[1718720237862,2.92889,3414.3,3413.5,3.9637]
[1718720238063,2.92861,3414.6,3413.5,3.9637]
[1718720238240,0.20732342,3414.7,3413.5,3.9637]
[1718720238444,2.92886,3414.3,3413.5,2.81]
[1718720238670,0.292886,3414.2,3413.2,3.0]
[1718720238969,0.20732342,3414.7,3413.0,5.7287]
[1718720238970,3.53789369,3414.6,3413.1,1.765]
[1718720239270,2.9286,3414.6,3413.1,1.765]
[1718720239563,0.60929369,3414.6,3413.1,1.765]
[1718720239873,2.92862,3414.6,3413.1,1.765]
[1718720240167,2.92885,3414.3,3413.1,1.765]
[1718720240331,2.9286,3414.6,3413.1,3.0]
[1718720240530,2.92927,3413.9,3413.0,4.28444506]
[1718720240735,2.92911,3414.0,3413.0,4.28444506]
[1718720241031,2.9292,3413.9,3413.0,4.28444506]
[1718720241234,2.92929,3413.8,3413.0,3.9637]
[1718720241433,0.60929369,3414.1,3413.0,2.81]
[1718720241736,2.92921,3413.9,3413.0,2.81]
[1718720242180,2.92936,3413.8,3412.7,0.32151751]
[1718720242469,2.92936,3413.8,3412.5,5.7287]
[1718720243571,2.92946,3413.6,3412.5,5.7287]
[1718720243795,2.92971,3413.3,3412.1,1.762]
[1718720243950,3.70329369,3413.7,3412.1,1.762]
[1718720243951,2.9298,3413.2,3412.1,1.762]
[1718720244343,3.094,3413.1,3411.5,2.81]
[1718720244543,2.93015,3412.8,3411.5,2.81]
[1718720244789,0.60929369,3413.2,3411.6,0.05861949]
[1718720245070,3.53917369,3413.2,3411.6,0.05861949]
[1718720245281,2.92991,3413.1,3411.6,0.05861949]
[1718720245963,2.92991,3413.1,3411.7,1.762]
[1718720246158,2.93006,3412.9,3411.7,1.762]
[1718720246352,0.60929369,3413.2,3411.8,0.05861178]
[1718720246693,0.60929369,3413.9,3412.8,2.81]
[1718720246847,2.92938,3413.7,3412.8,2.81]
[1718720247047,0.60929369,3413.8,3412.8,2.81]
[1718720247048,2.9293,3413.8,3412.8,2.81]
[1718720247452,2.92937,3413.7,3412.8,2.81]
[1718720247651,2.92922,3413.9,3412.8,4.572]
[1718720247990,2.9288,3414.4,3413.0,1.762]
[1718720248158,2.9288,3414.4,3413.1,2.60332005]
[1718720248366,0.60929369,3414.5,3413.1,1.82059006]
[1718720248367,3.53806369,3414.5,3413.1,1.82059006]
[1718720248672,2.92915,3414.0,3413.0,3.0]
[1718720248851,2.92915,3414.0,3412.9,4.1537]
[1718720249050,2.92946,3413.6,3412.9,1.1537]
[1718720249276,2.92946,3413.6,3411.9,0.48206118]
[1718720249277,2.92946,3413.6,3412.4,1.1537]
[1718720249595,2.92957,3413.5,3412.4,1.1537]
[1718720249746,2.92938,3413.7,3412.4,5.9157]
[1718720249947,2.92931,3413.8,3412.5,0.87257]
[1718720250391,0.60929369,3414.0,3412.8,2.81]
[1718720250586,0.60929369,3414.1,3413.0,1.762]
[1718720250794,0.91394054,3414.2,3413.1,0.05859107]
[1718720250795,0.60929369,3414.2,3413.1,0.05859107]
[1718720250975,3.84274054,3414.4,3413.1,0.05859107]
[1718720250976,0.60929369,3414.4,3413.1,2.31233619]
[1718720251285,2.92895,3414.2,3413.1,2.31233619]
[1718720251497,2.92885,3414.3,3413.1,2.31233619]
[1718720252061,0.60929369,3414.4,3413.2,1.1537]
[1718720252255,0.60929369,3414.4,3413.3,0.34660362]
[1718720252459,0.60929369,3414.5,3413.3,4.9771917]
[1718720252719,3.089,3414.5,3413.3,3.15660362]
[1718720252995,3.53789369,3414.6,3413.4,0.43103036]
[1718720253484,2.92877,3414.4,3413.4,0.43103036]
[1718720253691,3.53789369,3414.6,3413.4,0.43103036]
[1718720253692,2.9286,3414.6,3413.4,0.43103036]
[1718720253898,3.53789369,3414.6,3413.4,0.43103036]
[1718720254125,4.27591611,3414.6,3413.4,0.43103036]
[1718720254281,2.92873,3414.5,3413.4,0.43103036]
[1718720254607,4.27591611,3414.6,3413.4,0.43103036]
[1718720254904,2.92878,3414.4,3413.4,0.43103036]
[1718720255112,2.92878,3414.4,3413.3,2.81]
[1718720255278,3.53798369,3414.5,3413.3,2.81]
[1718720255786,2.92877,3414.4,3413.3,2.81]
[1718720256510,3.53799369,3414.5,3413.3,2.81]
[1718720256707,3.53799369,3414.5,3413.4,0.57257]
[1718720257827,7.23603739,3414.8,3413.9,1.762]
[1718720257828,0.60929369,3414.8,3413.9,1.762]
[1718720258113,0.55776159,3415.3,3414.4,1.762]
[1718720258114,0.60929369,3415.1,3414.4,1.762]
[1718720258325,0.005,3415.6,3414.0,1.21227551]
[1718720258326,0.005,3415.6,3415.0,2.9157]
[1718720259699,0.005,3415.6,3415.3,2.81]
[1718720260292,0.005,3415.6,3415.3,3.38257]
[1718720261225,0.005,3415.6,3415.0,1.1537]
[1718720261403,0.005,3415.6,3414.0,0.1762]
[1718720261404,2.92784,3415.5,3414.4,1.1537]
[1718720261615,0.58605,3415.5,3414.4,4.1537]
[1718720261925,0.61429369,3415.6,3414.4,4.1537]
[1718720262283,0.61429369,3415.6,3414.5,0.05857096]
[1718720262487,0.005,3415.6,3414.6,0.8784271]
[1718720262793,0.005,3415.6,3414.7,1.82056437]
[1718720262993,0.005,3415.6,3414.8,4.572]
[1718720263221,0.005,3415.6,3415.0,1.762]
[1718720263532,0.005,3415.6,3415.1,0.05855733]
[1718720263706,0.005,3415.6,3415.4,1.762]
[1718720263881,0.60929369,3416.5,3415.5,1.21224968]
[1718720264088,0.60929369,3416.6,3415.8,2.81]
[1718720264397,1.21858739,3416.9,3415.8,2.81]
[1718720264398,0.60929369,3416.7,3415.8,2.81]
[1718720264582,0.60929369,3416.9,3415.9,0.05854303]
[1718720264784,0.60929369,3416.9,3415.8,4.96837]
[1718720264991,0.60929369,3417.1,3415.8,4.96837]
[1718720265320,0.60929369,3417.1,3415.9,0.496837]
[1718720265535,0.60929369,3417.0,3416.0,1.762]
[1718720265687,0.91394054,3417.2,3415.9,0.496837]
[1718720265688,3.53575369,3417.1,3415.9,0.496837]
[1718720265882,3.53575369,3417.1,3416.0,0.3306837]
[1718720265883,0.60929369,3417.1,3416.0,0.3306837]
[1718720266116,2.92667,3416.9,3415.8,2.81]
[1718720266513,3.53596369,3416.9,3415.8,2.81]
[1718720266723,0.60929369,3416.9,3415.9,1.762]
[1718720267031,0.60929369,3417.2,3416.1,1.762]
[1718720267216,0.60929369,3417.4,3416.1,1.762]
[1718720267384,0.60929369,3417.4,3416.2,2.9157]
[1718720267587,0.60929369,3417.4,3416.2,3.85299]
[1718720267997,0.60929369,3417.5,3416.3,2.81]
[1718720268439,0.60929369,3417.5,3416.3,4.572]
[1718720268733,0.60929369,3417.9,3416.9,1.762]
[1718720269015,0.60929369,3418.2,3417.0,0.05301831]
[1718720269169,0.91394054,3418.3,3417.3,2.81]
[1718720269170,0.60929369,3418.3,3417.3,2.81]
[1718720269320,0.60929369,3418.3,3416.8,2.81]
[1718720269321,2.92568,3418.0,3416.8,2.81]
[1718720269655,2.92602,3417.7,3416.4,4.1537]
[1718720269862,2.92612,3417.5,3416.4,4.1537]
[1718720270020,2.92628,3417.4,3416.4,4.1537]
[1718720270225,2.92628,3417.4,3416.4,3.0]
[1718720270432,2.92628,3417.4,3416.0,1.762]
[1718720270433,2.92629,3417.3,3416.0,1.762]
[1718720270623,0.292602,3417.6,3416.4,1.762]
[1718720270844,0.60929369,3417.8,3416.5,0.05853259]
[1718720271053,4.14419739,3418.1,3416.9,1.1537]
[1718720271054,3.53489369,3418.1,3416.9,1.1537]
[1718720271259,2.92578,3417.9,3416.9,1.1537]
[1718720271425,0.73742642,3418.0,3417.0,0.05852882]
[1718720271762,2.92543,3418.3,3416.9,2.9157]
[1718720272274,3.53456369,3418.5,3416.9,2.9157]
[1718720272472,1.34750679,3418.4,3417.0,2.39309212]
[1718720272638,1.34750679,3418.4,3417.3,2.81]
[1718720272864,0.60929369,3418.9,3417.8,2.81]
[1718720273171,0.60929369,3418.9,3417.3,2.81]
[1718720273172,0.60929369,3419.0,3417.6,1.762]
[1718720273479,1.22358739,3419.3,3417.6,1.762]
[1718720273480,2.92958,3419.3,3418.1,2.81]
[1718720273712,2.92958,3419.3,3418.2,2.9157]
[1718720273713,0.005,3419.3,3418.2,2.9157]
[1718720273848,0.005,3419.3,3419.2,2.81]
[1718720274047,0.005,3419.3,3418.4,1.762]
[1718720274048,0.005,3419.3,3418.7,2.81]
[1718720274282,0.005,3419.3,3418.4,1.762]
[1718720274481,0.005,3419.3,3418.3,3.0]
[1718720274482,0.005,3419.3,3418.6,1.762]
[1718720274902,2.92475,3419.1,3418.4,0.39793934]
[1718720275046,2.92475,3419.1,3417.1,2.92645]
[1718720275047,3.217885,3419.0,3417.7,3.0]
[1718720275252,0.005,3419.3,3418.0,2.81]
[1718720275558,0.005,3419.3,3418.1,2.9157]
[1718720275882,0.005,3419.3,3418.0,2.81]
[1718720275883,2.92469,3419.2,3418.0,2.81]
[1718720276291,0.005,3419.3,3418.0,2.81]
[1718720276450,0.005,3419.3,3418.5,4.572]
[1718720276651,0.005,3419.3,3418.7,2.9157]
[1718720276851,1.172417,3420.2,3418.9,1.1537]
[1718720277070,4.17948073,3421.3,3418.9,1.1537]
[1718720277071,0.9083671,3422.1,3420.2,1.762]
[1718720277375,3.18974869,3422.9,3420.2,1.762]
[1718720277376,0.60548506,3424.9,3422.9,1.762]
[1718720277576,1.51848394,3425.3,3423.0,0.1762]
[1718720277577,2.92063,3424.0,3423.0,0.1762]
[1718720277792,2.92042,3424.2,3423.5,2.81]
[1718720277793,2.92067,3423.9,3423.5,2.81]
[1718720277988,1.35548506,3425.4,3423.5,2.81]
[1718720277989,3.87578394,3425.8,3423.5,2.81]
[1718720278166,3.87578394,3425.8,3422.6,1.04763455]
[1718720278167,0.02639565,3423.8,3422.8,0.95101474]
[1718720278503,0.02750067,3423.7,3421.3,0.2747]
[1718720278803,2.92178,3422.6,3421.7,2.81]
[1718720278951,2.92125,3423.2,3420.6,3.0]
[1718720279153,2.3998,3423.5,3420.5,0.2747]
[1718720279154,0.02787943,3422.5,3420.7,0.32747]
[1718720279471,2.92283,3421.4,3419.9,3.521]
[1718720279789,2.3998,3422.5,3420.7,1.762]
[1718720279790,0.02718653,3421.3,3420.7,1.762]
[1718720279999,0.02718653,3421.3,3420.9,1.762]
[1718720280177,3.0,3423.3,3420.9,1.762]
[1718720280178,2.92134,3423.1,3421.0,0.05830994]
[1718720280364,2.92178,3422.6,3421.1,0.06761722]
[1718720280553,2.92143,3423.0,3421.1,0.06761722]
[1718720280554,2.92222,3422.1,3421.1,0.06761722]
[1718720280758,2.92222,3422.1,3419.9,2.92403]
[1718720280759,2.92254,3421.7,3420.0,3.521]
[1718720280977,2.3723,3422.3,3419.2,0.2747]
[1718720280978,0.02655375,3422.0,3419.3,3.521]
[1718720281181,2.92332,3420.8,3419.4,0.06765084]
[1718720281487,2.92248,3421.8,3419.4,0.06765084]
[1718720281488,0.0263895,3420.7,3419.5,0.38633508]
[1718720281788,0.0263895,3420.7,3419.6,1.82964688]
[1718720282001,0.292185,3422.4,3419.8,1.762]
[1718720282151,0.292185,3422.4,3419.9,0.05847366]
[1718720282152,2.92232,3422.0,3419.9,0.05847366]
[1718720282356,0.026543,3422.2,3420.3,1.762]
[1718720282585,2.4814,3423.0,3420.7,1.762]
[1718720282808,2.92168,3422.7,3420.8,0.04289176]
[1718720282970,0.03497324,3422.9,3420.7,1.762]
[1718720283182,0.03202414,3422.6,3421.3,1.762]
[1718720283390,2.3013,3423.9,3421.4,0.1762]
[1718720283391,0.03204725,3422.8,3421.4,0.1762]
[1718720283549,0.03204725,3422.8,3421.0,3.0]
[1718720283550,2.92199,3422.4,3421.0,3.0]
[1718720283751,0.292199,3422.3,3419.8,0.2747]
[1718720283987,2.306,3422.5,3420.1,3.0]
[1718720283988,2.92253,3421.7,3420.1,3.0]
[1718720284199,5.395,3422.5,3420.2,1.171113]
[1718720284200,2.92244,3421.8,3420.2,1.171113]
[1718720284501,2.92326,3420.9,3420.0,0.06763897]
[1718720284665,2.92356,3420.5,3420.0,0.06763897]
[1718720285000,0.292326,3420.8,3419.1,1.445813]
[1718720285209,2.92322,3420.9,3419.2,0.0676548]
[1718720285368,2.92318,3421.0,3419.2,1.8296548]
[1718720285568,2.92348,3420.6,3419.3,0.15134678]
[1718720285901,2.92338,3420.7,3419.2,0.0676548]
[1718720286102,0.842301,3421.1,3419.2,0.0676548]
[1718720286103,2.92364,3420.4,3419.2,0.0676548]
[1718720286305,0.842301,3421.1,3419.2,0.0676548]
[1718720286306,3.842301,3421.1,3419.2,0.0676548]
[1718720286467,2.92347,3420.6,3419.2,0.0676548]
[1718720286668,2.2659,3422.0,3419.8,2.0367]
[1718720286864,2.2659,3422.0,3419.2,0.0676548]
[1718720286865,2.92146,3423.0,3420.3,0.2747]
[1718720287132,5.59761878,3424.8,3420.2,1.762]
[1718720287133,3.089,3424.5,3421.4,1.762]
[1718720287407,2.2659,3424.8,3421.7,1.762]
[1718720287408,2.92055,3424.1,3421.7,1.762]
[1718720287567,2.92055,3424.1,3421.9,1.762]
[1718720287905,2.92134,3423.1,3421.9,1.762]
[1718720288105,3.089,3423.3,3421.6,1.762]
[1718720288426,0.292134,3423.0,3421.6,1.762]
[1718720288710,2.92069,3423.9,3421.9,1.762]
[1718720288880,2.92075,3423.8,3421.9,1.762]
[1718720289079,6.00975,3423.8,3422.1,1.762]
[1718720289383,6.00975,3423.8,3421.4,3.0]
[1718720289384,3.089,3423.1,3421.1,3.521]
[1718720289687,3.089,3423.1,3421.3,0.2936]
[1718720289898,6.212589,3424.1,3421.4,0.36121129]
[1718720289899,3.212589,3424.1,3421.4,0.36121129]
[1718720290100,3.089,3423.4,3421.4,0.06761129]
[1718720290401,2.92233,3422.0,3421.4,0.06761129]
[1718720290731,2.92148,3423.0,3421.4,0.06761129]
[1718720290732,3.089,3422.1,3421.4,0.06761129]
[1718720290865,2.92288,3421.3,3419.8,0.2747]
[1718720291073,3.089,3421.6,3419.8,0.2747]
[1718720291405,2.92246,3421.8,3419.8,0.34234293]
[1718720291406,3.089,3421.3,3419.8,0.34234293]
[1718720291623,0.584506,3421.6,3419.9,0.06764095]
[1718720291786,2.92278,3421.4,3419.9,0.06764095]
[1718720291984,2.92142,3423.0,3420.4,2.92356]
[1718720292176,0.292148,3422.9,3420.8,1.762]
[1718720292378,3.0,3423.9,3421.4,1.762]
[1718720292591,3.0,3423.9,3421.7,0.2936]
[1718720292592,2.92084,3423.7,3421.7,0.2936]
[1718720292788,2.92084,3423.7,3421.3,3.521]
[1718720292789,3.989984,3423.6,3421.8,2.26567085]
[1718720293083,2.4577,3424.0,3421.3,3.521]
[1718720293084,2.921,3423.5,3421.3,3.521]
[1718720293287,2.92143,3423.0,3421.5,1.762]
[1718720293483,0.2921,3423.4,3421.2,0.2747]
[1718720293720,0.2921,3423.4,3419.8,0.32511487]
[1718720293721,2.92202,3422.3,3420.4,0.2747]
[1718720293881,0.292202,3422.2,3420.6,0.06762711]
[1718720294066,2.92191,3422.5,3420.6,0.06762711]
[1718720294268,2.9222,3422.1,3420.7,1.762]
[1718720294467,0.29222,3422.0,3420.7,1.97243271]
[1718720294702,3.089,3422.5,3420.7,1.97243271]
[1718720295009,2.92202,3422.3,3420.7,1.97243271]
[1718720295209,6.01102,3422.3,3420.7,1.97243271]
[1718720295421,0.55,3422.4,3420.6,0.06762711]
[1718720295422,2.92224,3422.1,3420.6,0.06762711]
[1718720295723,2.92227,3422.0,3420.6,0.06762711]
[1718720295872,2.92253,3421.7,3420.6,0.06762711]
[1718720296079,0.639489,3421.6,3420.6,0.06762711]
[1718720296381,2.92272,3421.5,3420.6,0.06762711]
[1718720296580,0.639489,3421.6,3420.6,0.06762711]
[1718720296581,2.92296,3421.2,3420.6,0.06762711]
[1718720296982,3.47279,3421.4,3420.6,0.06762711]
[1718720297189,0.55,3421.4,3419.8,0.2936]
[1718720297506,0.55,3421.5,3419.9,2.0556]
[1718720297716,0.347245,3421.5,3420.0,2.00179429]
[1718720298004,2.92201,3422.3,3420.1,0.04584774]
[1718720298213,2.92226,3422.0,3420.4,1.762]
[1718720298373,2.92186,3422.5,3420.3,0.2936]
[1718720298575,2.92312,3421.0,3420.1,0.06763699]
[1718720298792,6.01171,3421.5,3420.1,0.06763699]
[1718720298793,0.58461,3420.9,3420.1,0.06763699]
[1718720299080,2.92331,3420.8,3420.1,0.06763699]
[1718720299276,2.92339,3420.7,3420.1,0.06763699]
[1718720299495,3.089,3420.5,3420.1,0.06763699]
[1718720299734,2.92371,3420.4,3420.1,0.06763699]
[1718720299878,0.55,3420.3,3420.1,0.06763699]
[1718720300072,5.8476,3420.2,3420.1,0.06763699]
[1718720300321,2.9238,3420.2,3420.1,0.06763699]
[1718720300513,6.796252,3420.2,3420.1,0.06763699]
[1718720300916,12.809052,3420.2,3420.1,0.06763699]
[1718720301082,13.359052,3420.2,3420.1,0.06763699]
[1718720301280,2.92424,3419.7,3418.6,0.2936]
[1718720301616,3.089,3420.0,3418.1,0.2747]
[1718720301617,2.92459,3419.3,3418.1,0.2747]
[1718720301928,6.01359,3419.3,3417.4,0.2747]
[1718720302210,2.92474,3419.1,3417.4,0.2747]
[1718720302624,3.217179,3419.2,3417.5,0.05851015]
[1718720302917,2.92492,3418.9,3417.5,0.2936]
[1718720303119,0.292492,3418.9,3417.5,0.2936]
[1718720303290,2.92463,3419.3,3417.6,0.058511]
[1718720303483,2.92476,3419.1,3417.6,0.058511]
[1718720303674,2.92476,3419.1,3417.5,0.2936]
[1718720303675,2.92484,3419.0,3417.5,0.2936]
[1718720303881,0.55,3419.2,3417.6,0.05851101]
[1718720304083,2.92457,3419.3,3417.6,0.05851101]
[1718720304380,2.92466,3419.2,3417.6,0.05851101]
[1718720304879,2.92474,3419.1,3417.6,0.05851101]
[1718720305089,2.92498,3418.9,3417.5,0.2936]
[1718720305395,0.6306,3419.2,3417.6,0.05851136]
[1718720305594,2.92465,3419.3,3417.6,0.05851136]
[1718720305800,2.92466,3419.2,3417.6,0.05851136]